fUST/lending_fUST_20250824
["ID","MTS","AMOUNT","RATE_DAILY","PERIOD"]
[381059685,1755979832808,-398.38,0.00025078,2]
[381059686,1755979832818,-500.0,0.00025078,2]
[381059687,1755979832828,-500.0,0.00025078,2]
[381059688,1755979832837,-500.0,0.00025078,2]
[381059689,1755979832846,-500.0,0.00025078,2]
[381059690,1755979832856,-500.0,0.00025078,2]
[381059691,1755979832866,-521.49517883,0.00025078,2]
[381059692,1755979832875,-500.0,0.00025078,2]
[381059693,1755979832884,-500.0,0.00025078,2]
[381059694,1755979832893,-500.0,0.00025078,2]
[381059695,1755979832903,-500.0,0.00025078,2]
[381059696,1755979832913,-416.38546668,0.00025078,2]
[381059697,1755979832923,-441.94783612,0.00025078,2]
[381059698,1755979832932,-543.42082413,0.00025078,2]
[381059699,1755979832942,-482.567156,0.00025078,2]
[381059700,1755979832952,-500.0,0.00025078,2]
[381059701,1755979832961,-500.0,0.00025078,2]
[381059702,1755979832970,-500.0,0.00025078,2]
[381059703,1755979832980,-500.0,0.00025078,2]
[381059704,1755979832989,-500.0,0.00025078,2]
[381059705,1755979832998,-500.0,0.00025078,2]
[381059706,1755979833008,-500.0,0.00025078,2]
[381059707,1755979833017,-500.0,0.00025078,2]
[381059708,1755979833027,-500.0,0.00025078,2]
[381059709,1755979833039,-500.0,0.00025078,2]
[381059710,1755979833050,-500.0,0.00025078,2]
[381059711,1755979833060,-500.0,0.00025078,2]
[381059712,1755979833070,-500.0,0.00025078,2]
[381059713,1755979833082,-500.0,0.00025078,2]
[381059714,1755979833092,-500.0,0.00025078,2]
[381059716,1755979833103,-500.0,0.00025078,2]
[381059718,1755979833113,-485.85181568,0.00025078,2]
[381059720,1755979833123,-500.0,0.00025078,2]
[381059722,1755979833134,-500.0,0.00025078,2]
[381059724,1755979833144,-500.0,0.00025078,2]
[381059726,1755979833154,-500.0,0.00025078,2]
[381059728,1755979833164,-50000.0,0.00025079,2]
[381059730,1755979833174,-500.0,0.00025079,2]
[381059732,1755979833186,-445.26132131,0.0002508,2]
[381059734,1755979833196,-1000.0,0.00025144,2]
[381059736,1755979833206,-230.73278781,0.00025193,2]
[381059738,1755979833215,-500.0,0.000257,2]
[381059740,1755979833225,-155.583,0.00025963,11]
[381059742,1755979833234,-229.11282378,0.000263,2]
[381059744,1755979833244,-426.98434082,0.000268,2]
[381059746,1755979833255,-445.26132131,0.00026806,6]
[381059748,1755979833264,-817.18,0.0002688,10]
[381059750,1755979833274,-3586.36061664,0.0002689,2]
[381059753,1755979833286,-17124.15942666,0.0002689,2]
[381059755,1755979833296,-12502.21,0.000269,2]
[381059757,1755979833305,-1129.99800243,0.000269,2]
[381059783,1755979833553,776.35257088,0.00024853,2]
[381059786,1755979833576,4223.64742912,0.00024853,2]
[381060007,1755979838542,-162.54304105,0.00024977,2]
[381060008,1755979838551,-160.0,0.00025949,2]
[381060009,1755979838561,-199.0,0.0002678,10]
[381060010,1755979838570,-535.45695895,0.000269,2]
[381060011,1755979838582,-560.85,0.000269,2]
[381060012,1755979838593,-1908.16636108,0.000269,2]
[381060013,1755979838604,-5899.95210121,0.000269,2]
[381060014,1755979838615,-1366.34850926,0.000269,2]
[381060016,1755979838721,-37.99177821,0.000269,2]
[381060017,1755979838732,-1427.73336685,0.000269,2]
[381060018,1755979838743,-521.30917715,0.000269,2]
[381060019,1755979838761,-426.42374486,0.000269,2]
[381060020,1755979838770,-178.48622603,0.000269,2]
[381060021,1755979838783,-1353.60377397,0.000269,2]
[381060022,1755979838793,-16754.52,0.000269,2]
[381060023,1755979838801,-376.14580871,0.00027091,2]
[381060024,1755979838811,-160.0,0.00027147,2]
[381060025,1755979838820,-420.0,0.00027164,2]
[381060026,1755979838829,-445.26132131,0.00028533,10]
[381060027,1755979838838,-771.97,0.0002939,3]
[381060028,1755979838847,-500.0,0.000294,5]
[381060029,1755979838856,-480.0,0.00029426,2]
[381060030,1755979838865,-986.39074709,0.00029948,5]
[381060031,1755979838874,-426.98434081,0.00031255,2]
[381060032,1755979838885,-549.49,0.000313,2]
[381060033,1755979838894,-445.26132131,0.00031986,17]
[381060034,1755979838903,-3945.9918084,0.00032317,33]
[381060035,1755979838913,-445.26132131,0.00033712,21]
[381060036,1755979838922,-445.26132131,0.00035439,24]
[381060037,1755979838931,-426.98434081,0.00035709,2]
[381060038,1755979838940,-445.26132131,0.00037166,28]
[381060039,1755979838949,-408.0,0.00038621,2]
[381060040,1755979838958,-168.0,0.00038693,2]
[381060041,1755979838967,-445.26132131,0.00038892,32]
[381060042,1755979838977,-168.0,0.00039359,2]
[381060043,1755979838987,-168.0,0.00039628,2]
[381060044,1755979838996,-168.0,0.00039814,2]
[381060045,1755979839005,-500.0,0.00040121,30]
[381060046,1755979839015,-426.98434081,0.00040164,28]
[381060047,1755979839024,-168.0,0.0004021,2]
[381060048,1755979839033,-168.0,0.00040293,2]
[381060049,1755979839042,-168.0,0.00040322,2]
[381060050,1755979839054,-445.26132131,0.00040619,36]
[381060051,1755979839063,-168.0,0.00041023,2]
[381060052,1755979839072,-168.0,0.00041222,2]
[381060053,1755979839081,-168.0,0.00041448,2]
[381060054,1755979839093,-408.0,0.00041621,2]
[381060055,1755979839102,-168.0,0.00041749,2]
[381060056,1755979839112,-445.26132131,0.00042345,39]
[381060057,1755979839122,-500.0,0.00042701,30]
[381060058,1755979839132,-168.0,0.00042915,2]
[381060059,1755979839141,-771.93,0.00043048,30]
[381060060,1755979839150,-168.0,0.00043058,2]
[381060061,1755979839159,-500.0,0.00043708,30]
[381060062,1755979839364,-445.26132131,0.00044072,43]
[381060063,1755979839374,-426.98434081,0.00044618,28]
[381060064,1755979839383,-385.266,0.00044621,2]
[381060065,1755979839393,-445.26132131,0.00045798,47]
[381060066,1755979839402,-500.0,0.00046017,10]
[381060067,1755979839412,-500.0,0.00046017,10]
[381060068,1755979839421,-524.9338034,0.00046067,10]
[381060069,1755979839431,-1000.0,0.00046565,10]
[381060070,1755979839441,-552.19222738,0.00046586,10]
[381060071,1755979839462,-500.0,0.00046586,10]
[381060072,1755979839472,-500.0,0.00046586,10]
[381060073,1755979839482,-500.0,0.00046586,7]
[381060074,1755979839491,-155.584,0.00046972,78]
[381060075,1755979839499,-1000.0,0.00047113,10]
[381060076,1755979839509,-1000.0,0.00047134,10]
[381060077,1755979839518,-279.39570652,0.00047134,10]
[381060078,1755979839527,-561.50936605,0.00047134,7]
[381060079,1755979839536,-426.98434081,0.00049073,28]
[381060080,1755979839546,-823.98871816,0.00049223,30]
[381060081,1755979839555,-445.26132131,0.00049251,54]
[381060082,1755979839565,-237.7875329,0.000497,2]
[381060083,1755979839574,-200.0,0.0004979,5]
[381060084,1755979839583,-3874.84639501,0.0004979,10]
[381060085,1755979839592,-417.15472785,0.0004979,10]
[381060086,1755979839601,-502.31631118,0.00049873,10]
[381060087,1755979839610,-501.58998718,0.00049873,10]
[381060088,1755979839619,-500.0,0.00049873,10]
[381060089,1755979839628,-500.0,0.00049873,10]
[381060090,1755979839637,-500.0,0.00049873,10]
[381060091,1755979839646,-500.0,0.00049873,10]
[381060092,1755979839654,-500.0,0.00049873,10]
[381060093,1755979839663,-417.32350567,0.00049889,120]
[381060094,1755979839673,-200.0,0.0004989,120]
[381060095,1755979839682,-165684.160346,0.0004989,4]
[381060096,1755979839692,-223450.13482909,0.000499,2]
[381060097,1755979839704,-2129.4,0.000499,2]
[381060134,1755979843747,-336.34647039,0.000499,2]
[381060137,1755979843799,-200.31500766,0.000499,2]
[381060138,1755979843817,-303.81059378,0.000499,2]
[381060139,1755979843828,-10558.09129021,0.000499,2]
[381060140,1755979843839,-501.08328675,0.000499,2]
[381060141,1755979843850,-1000.0,0.000499,2]
[381060142,1755979843861,-538.13377671,0.000499,2]
[381060179,1755979846655,-11658.85469214,0.000499,2]
[381060181,1755979846666,-257.18451542,0.000499,2]
[381060187,1755979846709,-1532.09469342,0.000499,2]
[381060194,1755979846763,-1898.1888978,0.000499,2]
[381060430,1755979849487,776.35257088,0.00024853,2]
[381060431,1755979849510,4223.64742912,0.00024853,2]
[381060432,1755979864644,776.35257088,0.00024853,2]
[381060433,1755979864669,4223.64742912,0.00024853,2]
[381060434,1755979880132,776.35257088,0.00024853,2]
[381060435,1755979880155,4223.64742912,0.00024853,2]
[381060436,1755979895321,776.35257088,0.00024853,2]
[381060437,1755979895354,4223.64742912,0.00024853,2]
[381060438,1755979910429,776.35257088,0.00024853,2]
[381060439,1755979910452,4223.64742912,0.00024853,2]
[381060442,1755979926287,776.35257088,0.00024853,2]
[381060443,1755979926314,4223.64742912,0.00024853,2]
[381060444,1755979942520,776.35257088,0.00024853,2]
[381060445,1755979942542,4223.64742912,0.00024853,2]
[381060446,1755979948667,312.88513449,0.00021627,2]
[381060447,1755979948820,312.88513449,0.00023353,2]
[381060448,1755979953185,150.5823019,0.000199,2]
[381060449,1755979953215,162.30283274,0.000199,2]
[381060450,1755979957724,4837.69716726,0.00024853,2]
[381060451,1755979957746,162.30283274,0.00024853,2]
[381060452,1755979972868,4837.69716726,0.00024853,2]
[381060453,1755979972892,162.30283274,0.00024853,2]
[381060454,1755979988542,4837.69716726,0.00024853,2]
[381060455,1755979988565,162.30283274,0.00024853,2]
[381060457,1755980003718,4837.69716726,0.00024853,2]
[381060458,1755980003743,162.30283274,0.00024853,2]
[381060461,1755980019716,4837.69716726,0.00024853,2]
[381060462,1755980019738,162.30283274,0.00024853,2]
[381060463,1755980036636,4837.69716726,0.00024853,2]
[381060464,1755980036658,162.30283274,0.00024853,2]
[381060465,1755980051889,4837.69716726,0.00024853,2]
[381060466,1755980051911,162.30283274,0.00024853,2]
[381060467,1755980068253,4837.69716726,0.00024853,2]
[381060468,1755980068276,162.30283274,0.00024853,2]
[381060469,1755980085837,4837.69716726,0.00024853,2]
[381060470,1755980085864,162.30283274,0.00024853,2]
[381060471,1755980101377,4837.69716726,0.00024853,2]
[381060472,1755980101401,162.30283274,0.00024853,2]
[381060473,1755980108308,399.50506718,0.00024153,2]
[381060474,1755980115423,407.55815121,0.000199,2]
[381060475,1755980115843,407.55815105,0.00021627,2]
[381060476,1755980115991,407.55815105,0.00023353,2]
[381060477,1755980117769,3215.51764677,0.00024853,2]
[381060478,1755980117793,1784.48235323,0.00024853,2]
[381060479,1755980133432,1052.77590117,0.00024853,2]
[381060480,1755980281871,668.4213439,0.000199,2]
[381060481,1755980282438,668.4213438,0.00023353,2]
[381060482,1755980297917,825.8990579,0.00024853,2]
[381060483,1755980297941,1180.97570509,0.00024853,2]
[381060487,1755980437258,164.628819,0.00013699,2]
[381060488,1755980448974,623.85992088,0.000199,2]
[381060489,1755980449009,623.85992088,0.00021627,2]
[381060490,1755980449485,623.85992088,0.00023353,2]
[381060494,1755980615557,561.47392885,0.000199,2]
[381060495,1755980615705,561.47392879,0.00021627,2]
[381060496,1755980616280,561.47392879,0.00023353,2]
[381060506,1755980781711,98.39392684,0.000199,2]
[381060507,1755980781737,413.93072349,0.000199,2]
[381060508,1755980781820,512.32465014,0.00023353,2]
[381060510,1755980871155,251.4477266,0.000209,2]
[381060511,1755980902775,3822.29689977,0.00023,2]
[381060512,1755980902797,5000.0,0.00023,2]
[381060513,1755980902818,3452.96764641,0.00023,2]
[381060516,1755980921191,162.251669,0.00029578,120]
[381060517,1755980947986,499.16603243,0.000199,2]
[381060518,1755980948117,499.1660323,0.00021627,2]
[381060519,1755980948326,499.1660323,0.00023353,2]
[381060541,1755981031892,-151.0,0.00024853,2]
[381060542,1755981031902,-160.0,0.00024899,2]
[381060543,1755981031911,-160.0,0.00024899,2]
[381060544,1755981031921,-1042.27567082,0.000249,2]
[381060545,1755981031930,-495.65703556,0.000249,2]
[381060547,1755981031940,-499.1660323,0.0002508,2]
[381060548,1755981031950,-1200.0,0.0002517,2]
[381060549,1755981031959,-300.0,0.00025171,2]
[381060551,1755981031969,-300.0,0.00025171,2]
[381060553,1755981031979,-300.0,0.00025171,2]
[381060555,1755981031988,-300.0,0.00025171,2]
[381060558,1755981031998,-300.0,0.00025171,2]
[381060562,1755981032008,-8994.1231459,0.00025172,2]
[381060564,1755981032017,-1000.0,0.000265,2]
[381060566,1755981032027,-499.1660323,0.00026806,6]
[381060568,1755981032036,-1200.0,0.00026846,2]
[381060569,1755981032045,-170.79373634,0.00026989,2]
[381060570,1755981032055,-155.583,0.00027089,15]
[381060572,1755981032065,-160.0,0.00027094,2]
[381060574,1755981032077,-376.14580871,0.00027094,2]
[381060576,1755981032087,-160.0,0.00027114,2]
[381060577,1755981032096,-417.15472785,0.00027129,2]
[381060579,1755981032105,-300.0,0.00027264,2]
[381060580,1755981032116,-300.0,0.00027264,2]
[381060582,1755981032126,-1200.0,0.00027386,2]
[381060584,1755981032136,-12069.03941443,0.00027498,2]
[381060586,1755981032147,-1302.82862321,0.00028,5]
[381060588,1755981032160,-8955.32853519,0.00028,5]
[381060590,1755981032171,-499.1660323,0.00028533,10]
[381060592,1755981032181,-1000.0,0.000289,2]
[381060593,1755981032190,-281.0,0.00029028,2]
[381060595,1755981032199,-621.33108058,0.000294,2]
[381060620,1755981037931,-378.66891942,0.000294,2]
[381060621,1755981037941,-2583.23093002,0.00029478,2]
[381060622,1755981037950,-4283.53608253,0.00029478,2]
[381060623,1755981037960,-368.57,0.00029568,3]
[381060624,1755981037969,-184.29,0.00029568,3]
[381060625,1755981037979,-552.88,0.00029568,3]
[381060626,1755981037989,-444.18294556,0.00029576,2]
[381060627,1755981038000,-500.0,0.00029576,2]
[381060628,1755981038012,-500.0,0.00029576,2]
[381060629,1755981038024,-500.0,0.00029576,2]
[381060630,1755981038035,-626.94,0.00029576,2]
[381060632,1755981038047,-500.0,0.00029576,2]
[381060633,1755981038058,-500.0,0.00029576,2]
[381060634,1755981038072,-500.0,0.00029576,2]
[381060635,1755981038082,-500.0,0.00029576,2]
[381060636,1755981038092,-500.0,0.00029576,2]
[381060637,1755981038102,-227.04675824,0.00029576,2]
[381060638,1755981038115,-500.0,0.00029576,2]
[381060639,1755981038126,-500.0,0.00029576,2]
[381060640,1755981038138,-500.0,0.00029576,2]
[381060641,1755981038150,-450.39678012,0.00029576,2]
[381060642,1755981038161,-548.2567156,0.00029576,2]
[381060643,1755981038172,-500.0,0.00029576,2]
[381060644,1755981038184,-500.0,0.00029576,2]
[381060645,1755981038195,-345.01642624,0.00029576,2]
[381060646,1755981038206,-390.53220689,0.00029576,2]
[381060647,1755981038217,-500.0,0.00029576,2]
[381060648,1755981038228,-500.0,0.00029576,2]
[381060649,1755981038239,-500.0,0.00029576,2]
[381060650,1755981038251,-500.0,0.00029576,2]
[381060651,1755981038262,-500.0,0.00029576,2]
[381060652,1755981038273,-377.28268802,0.00029576,2]
[381060653,1755981038284,-500.0,0.00029576,2]
[381060654,1755981038295,-500.0,0.00029576,2]
[381060655,1755981038305,-500.0,0.00029576,2]
[381060656,1755981038316,-500.0,0.00029576,2]
[381060657,1755981038327,-500.0,0.00029576,2]
[381060658,1755981038339,-500.0,0.00029577,2]
[381060659,1755981038349,-26332.05227668,0.00029577,2]
[381060660,1755981038359,-498.62847464,0.00029577,2]
[381060661,1755981038370,-986.34282421,0.00029578,2]
[381060662,1755981038381,-568875.63332745,0.00029578,20]
[381060663,1755981038395,-39222.88261033,0.00029578,20]
[381060988,1755981042857,-1260.64205105,0.00029578,20]
[381061001,1755981042965,-950.0,0.00029578,20]
[381061242,1755981045908,-12776.27407325,0.00029578,20]
[381061296,1755981114484,49.53425656,0.000199,2]
[381061297,1755981114507,349.79856928,0.000199,2]
[381061298,1755981114691,399.33282584,0.00023353,2]
[381061299,1755981115188,399.33282584,0.00021627,2]
[381061301,1755981205759,3000.0,0.000216,2]
[381061302,1755981281281,359.39954343,0.000199,2]
[381061303,1755981281458,359.39954325,0.00021627,2]
[381061304,1755981281762,132.73669236,0.00023353,2]
[381061305,1755981281788,226.66285089,0.00023353,2]
[381061306,1755981446092,164.628819,0.00013699,2]
[381061307,1755981447929,615.02463004,0.000199,2]
[381061308,1755981448441,615.02462985,0.00023353,2]
[381061309,1755981448737,615.02462985,0.00021627,2]
[381061310,1755981619625,553.52216701,0.000199,2]
[381061311,1755981619726,553.52216686,0.00023353,2]
[381061312,1755981748512,328.75,0.0002455,2]
[381061313,1755981786303,808.18572999,0.00021627,2]
[381061314,1755981786460,519.65437651,0.000199,2]
[381061315,1755981786485,288.53135355,0.000199,2]
[381061316,1755981787323,808.18572999,0.00023353,2]
[381061319,1755981812556,219.16,0.0002455,2]
[381061321,1755981954585,727.36715702,0.000199,2]
[381061322,1755981954791,727.36715699,0.00021627,2]
[381061323,1755981955249,727.36715699,0.00023353,2]
[381061324,1755982121302,654.63044132,0.000199,2]
[381061325,1755982121426,654.63044129,0.00023353,2]
[381061326,1755982121478,192.76056285,0.00021627,2]
[381061327,1755982121502,461.86987844,0.00021627,2]
[381061579,1755982238030,-654.63044129,0.0002508,2]
[381061580,1755982238044,-182.577524,0.00025778,2]
[381061581,1755982238054,-479.18203471,0.0002679,2]
[381061583,1755982238084,-1462.41314032,0.0002679,2]
[381061585,1755982238093,-1941.59517501,0.00026793,2]
[381061587,1755982238102,-1200.0,0.00026794,2]
[381061589,1755982238112,-1941.59517501,0.00026795,2]
[381061591,1755982238121,-300.0,0.00026797,2]
[381061593,1755982238131,-300.0,0.00026797,2]
[381061595,1755982238140,-1941.59517501,0.00026798,2]
[381061597,1755982238149,-1941.59517501,0.000268,2]
[381061599,1755982238158,-654.63044129,0.00026806,6]
[381061601,1755982238167,-500.0,0.00026873,2]
[381061603,1755982238176,-500.0,0.00026873,2]
[381061605,1755982238185,-500.64224986,0.00026873,2]
[381061606,1755982238195,-500.0,0.00026873,2]
[381061607,1755982238205,-500.0,0.00026873,2]
[381061608,1755982238218,-500.0,0.00026873,2]
[381061610,1755982238227,-500.0,0.00026873,2]
[381061613,1755982238239,-500.0,0.00026873,2]
[381061614,1755982238248,-500.0,0.00026873,2]
[381061616,1755982238257,-500.0,0.00026873,2]
[381061618,1755982238266,-500.0,0.00026873,2]
[381061620,1755982238275,-502.6290904,0.00026873,2]
[381061622,1755982238284,-500.0,0.00026873,2]
[381061624,1755982238293,-500.0,0.00026873,2]
[381061626,1755982238302,-500.0,0.00026873,2]
[381061628,1755982238312,-500.0,0.00026873,2]
[381061630,1755982238321,-547.76989051,0.00026873,2]
[381061632,1755982238330,-500.0,0.00026873,2]
[381061634,1755982238340,-500.0,0.00026873,2]
[381061636,1755982238349,-184.28,0.0002688,3]
[381061638,1755982238358,-14403.5501533,0.0002688,2]
[381061640,1755982238367,-204.31267991,0.0002688,2]
[381061642,1755982238376,-500.0,0.00026889,2]
[381061644,1755982238386,-172.02852396,0.00026889,2]
[381061646,1755982238395,-319.69807645,0.00026889,2]
[381061648,1755982238405,-552.88,0.0002689,3]
[381061650,1755982238415,-144035.501533,0.0002689,2]
[381061652,1755982238424,-2043.1267991,0.0002689,2]
[381061654,1755982238433,-500.0,0.00026899,2]
[381061656,1755982238443,-500.0,0.00026899,2]
[381061658,1755982238452,-192.60463812,0.00026899,2]
[381061660,1755982238461,-465104.23,0.000269,2]
[381061662,1755982238470,-8123.34,0.000269,2]
[381061664,1755982238479,-500.0,0.00026973,2]
[381061666,1755982238489,-14403.5501533,0.00026973,2]
[381061668,1755982238498,-204.31267991,0.00026973,2]
[381061670,1755982238507,-28807.1003066,0.0002698,2]
[381061672,1755982238517,-408.62535982,0.0002698,2]
[381061674,1755982238527,-493.17141211,0.0002699,2]
[381061676,1755982238536,-100000.0,0.0002699,2]
[381061678,1755982238545,-160.0,0.00027056,2]
[381061680,1755982238554,-428.7872058,0.00027235,2]
[381061682,1755982238563,-500.0,0.00027247,2]
[381061684,1755982238572,-312.0,0.00027401,2]
[381061686,1755982238581,-510.97540017,0.00027421,5]
[381061688,1755982238591,-173.70079383,0.00027421,5]
[381061690,1755982238601,-1000.0,0.00027421,5]
[381061692,1755982238613,-1000.0,0.00027421,5]
[381061694,1755982238622,-1000.0,0.00027421,5]
[381061697,1755982238635,-244.0,0.00027421,5]
[381061699,1755982238646,-212.64944664,0.00027421,5]
[381061701,1755982238655,-804.67883132,0.00027421,5]
[381061703,1755982238664,-1000.0,0.00027421,5]
[381061705,1755982238673,-1005.63467787,0.00027421,5]
[381061706,1755982238683,-1000.0,0.00027421,5]
[381061709,1755982238693,-500.0,0.00027421,5]
[381061711,1755982238703,-1000.0,0.00027421,5]
[381061713,1755982238712,-1000.0,0.00027421,5]
[381061715,1755982238721,-1000.0,0.00027421,5]
[381061717,1755982238730,-500.0,0.00027421,5]
[381061718,1755982238739,-500.0,0.00027521,2]
[381061720,1755982238748,-315.55541597,0.00027621,2]
[381061723,1755982238758,-500.0,0.00027795,2]
[381061725,1755982238768,-1500.0,0.00027968,5]
[381061727,1755982238777,-1500.0,0.00027968,5]
[381061729,1755982238786,-1012.59694506,0.00027968,5]
[381061730,1755982238797,-1500.0,0.00027968,5]
[381061732,1755982238806,-1500.0,0.00027968,5]
[381061734,1755982238816,-1500.0,0.00027968,5]
[381061737,1755982238825,-1500.0,0.00027968,5]
[381061739,1755982238834,-161.11718925,0.00027968,5]
[381061741,1755982238843,-500.0,0.00028068,2]
[381061743,1755982238853,-368.56,0.0002825,3]
[381061745,1755982238862,-506.49646671,0.00028342,2]
[381061746,1755982238871,-500.51260226,0.00028436,5]
[381061748,1755982238881,-500.0,0.00028436,5]
[381061751,1755982238890,-500.0,0.00028436,5]
[381061753,1755982238899,-500.0,0.00028436,5]
[381061755,1755982238909,-500.0,0.00028436,5]
[381061756,1755982238919,-840.87911633,0.00028516,5]
[381061758,1755982238932,-654.63044129,0.00028533,10]
[381061760,1755982238941,-420.0,0.00028976,2]
[381061763,1755982238951,-500.0,0.00029091,4]
[381061765,1755982238960,-14403.5501533,0.0002934,2]
[381061767,1755982238969,-204.31267991,0.0002934,2]
[381061768,1755982238978,-155.584,0.0002935,22]
[381061771,1755982238987,-15015.90579836,0.0002935,2]
[381061773,1755982238997,-12695.67094824,0.00029426,2]
[381061775,1755982239007,-160.0,0.00029453,2]
[381061777,1755982239016,-417.15472785,0.00029453,2]
[381061778,1755982239025,-160.0,0.00029453,2]
[381061781,1755982239034,-376.14580871,0.00029453,2]
[381061783,1755982239044,-160.0,0.00029455,2]
[381061785,1755982239053,-160.0,0.00029455,2]
[381061787,1755982239063,-501.35145141,0.0002946,5]
[381061789,1755982239072,-500.0,0.0002946,5]
[381061791,1755982239081,-500.0,0.0002946,5]
[381061793,1755982239091,-500.0,0.0002946,5]
[381061795,1755982239100,-501.09946251,0.00029573,5]
[381061797,1755982239109,-500.0,0.00029573,5]
[381061799,1755982239118,-500.0,0.00029573,5]
[381061801,1755982239127,-393.44872279,0.00029573,5]
[381061803,1755982239137,-258.05490251,0.00029573,5]
[381061805,1755982239148,-350.0,0.00029573,5]
[381061807,1755982239158,-500.0,0.00029573,5]
[381061809,1755982239167,-500.0,0.00029573,5]
[381061811,1755982239177,-500.0,0.00029573,2]
[381061813,1755982239186,-505.69879824,0.00029573,5]
[381061815,1755982239195,-500.0,0.00029573,5]
[381061817,1755982239205,-162.03249695,0.00029573,5]
[381061819,1755982239214,-517.2707129,0.00029573,5]
[381061821,1755982239223,-500.0,0.00029573,5]
[381061823,1755982239233,-500.0,0.00029573,5]
[381061825,1755982239243,-500.0,0.00029573,5]
[381061827,1755982239253,-500.0,0.00029573,5]
[381061829,1755982239262,-7368.3308773,0.00029573,2]
[381061831,1755982239271,-1883.9857129,0.00029575,2]
[381061833,1755982239281,-151.0,0.00029578,2]
[381061835,1755982239290,-204.31267991,0.0002959,2]
[381061837,1755982239299,-718.49,0.000296,7]
[381061839,1755982239313,-191.56,0.000296,7]
[381061841,1755982239322,-842847.95869549,0.00029648,20]
[381061843,1755982239331,-160.0,0.00029668,2]
[381061845,1755982239340,-500.0,0.00029673,2]
[381061847,1755982239349,-500.0,0.00029673,5]
[381061849,1755982239358,-320.74606242,0.00029673,5]
[381061851,1755982239367,-500.0,0.00029673,5]
[381061853,1755982239376,-500.0,0.00029673,5]
[381061855,1755982239386,-502.59278412,0.00029673,5]
[381061857,1755982239395,-1762.0,0.00029822,7]
[381061859,1755982239404,-1762.0,0.00029822,7]
[381061861,1755982239414,-1762.0,0.00029822,7]
[381061863,1755982239423,-154.58960332,0.0002988,7]
[381061865,1755982239432,-2983.07670187,0.0003,2]
[381061867,1755982239441,-1976.16205761,0.00030008,2]
[381061869,1755982239450,-503.04797693,0.00030008,5]
[381061871,1755982239460,-1000.0,0.00030008,5]
[381061873,1755982239470,-500.0,0.00030062,5]
[381061875,1755982239479,-500.0,0.00030062,5]
[381061877,1755982239488,-500.0,0.00030062,5]
[381061879,1755982239498,-509.53924554,0.00030062,5]
[381061881,1755982239507,-500.0,0.00030062,5]
[381061883,1755982239517,-500.0,0.00030062,5]
[381061885,1755982239527,-500.0,0.00030062,5]
[381061887,1755982239536,-8123.34,0.000301,2]
[381061889,1755982239545,-500.0,0.00030121,5]
[381061891,1755982239554,-505.41813531,0.00030121,5]
[381061893,1755982239564,-575.54559068,0.00030121,2]
[381061895,1755982239573,-500.0,0.00030121,5]
[381061897,1755982239583,-500.0,0.00030121,5]
[381061899,1755982239592,-1000.0,0.00030121,5]
[381061901,1755982239606,-455.01543026,0.00030121,5]
[381061903,1755982239615,-1000.0,0.00030121,5]
[381061905,1755982239625,-260.0,0.00030216,2]
[381061907,1755982239634,-501.213037,0.00030221,5]
[381061910,1755982239644,-654.63044129,0.00030259,13]
[381061911,1755982239653,-1500.0,0.00030556,5]
[381061913,1755982239663,-831.54512723,0.00030609,5]
[381061915,1755982239672,-500.0,0.00030609,5]
[381061918,1755982239681,-1000.0,0.00030609,5]
[381061920,1755982239692,-958.46862542,0.00030609,5]